[Event "Manhem Chess Week-Elo 2019"]
[Site "Moelnlycke"]
[Date "2019.08.12"]
[Round "3.4"]
[White "Rasti, Arvin"]
[Black "Berggren Torell, Harald"]
[Result "1-0"]
[ECO "B07"]
[WhiteElo "2220"]
[BlackElo "2137"]
[Annotator "NA RC"]
[PlyCount "67"]
[EventDate "2019.08.10"]
[EventType "tourn"]
[EventCountry "SWE"]
[SourceTitle "playchess.com"]
[Source "ChessBase"]
[SourceQuality "1"]
[TimeControl "40/5400+30:1800+30"]

1. d4 {[%emt 0:00:00]} d6 {[%emt 0:00:00]} 2. Nc3 {[%emt 0:00:00]} g6 {[%emt 0:00:00]} 3. e4 {[%emt 0:00:14]} Bg7 {[%emt 0:00:00]} 4. Be3 {[%emt 0:00:14]} Nf6 {[%emt 0:07:03]} 5. Be2 {[%emt 0:00:33]} a6 {[%emt 0:02:34]} 6. h4 {[%emt 0:00:13] B07: Pirc Defence: Miscellaneous Systems} (6. f4 O-O 7. e5 Nfd7 8. h4 c5 9. e6 fxe6 10. h5 Qb6 11. hxg6 cxd4 12. Bc4 Ne5 13. Bxd4 Nd3+ 14. Bxd3 Qxd4 {1-0 (24) Saric,I (2660)-Kempinski,R (2612) Achaea 2016}) 6... h5 {[%emt 0:00:58]} 7. Nh3 {[%emt 0:01:24]} Ng4 {[%emt 0:10:19]} 8. Bg5 {[%emt 0:11:48]} Nc6 {[%emt 0:12:52]} 9. f3 {[%emt 0:02:15]} Nh6 {[%emt 0:02:27]} 10. Be3 {[%emt 0:04:32]} Bxh3 $146 {[%emt 0:25:04]} ({Predecessor:} 10... e5 11. dxe5 Bxh3 12. Rxh3 dxe5 13. Nd5 {1-0 (24) Dgebuadze,A (2512)-Frick,C (2271) Neustadt an der Weinstrasse 2008}) 11. Rxh3 {[%emt 0:00:48]} Qd7 {[%emt 0:02:30]} 12. Qd2 {[%emt 0:02:57]} Na7 {[%emt 0:06:55]} 13. a3 {[%emt 0:09:02]} c6 {[%emt 0:02:38]} (13... Nb5 $14) 14. a4 {[%emt 0:07:41]} e6 {[%emt 0:11:21]} 15. a5 {[%emt 0:03:19]} Ng8 {[%emt 0:04:15]} 16. Na4 {[%emt 0:03:19]} Nc8 {[%emt 0:00:37]} 17. Qb4 {[%emt 0:02:18]} Bf8 {[%emt 0:02:21]} 18. Qb3 {[%emt 0:07:00]} Qc7 {[%emt 0:00:44]} 19. Qc3 {[%emt 0:02:35]} d5 {[%emt 0:02:41]} 20. e5 $16 {[%emt 0:03:09]} Na7 {[%emt 0:01:06]} 21. b3 {[%emt 0:04:49]} Ne7 {[%emt 0:01:03]} 22. g4 {[%emt 0:03:02]} Nec8 {[%emt 0:00:20]} 23. Kf2 {[%emt 0:02:13]} Be7 {[%emt 0:01:57]} 24. Rg1 {[%emt 0:06:33]} hxg4 {[%emt 0:00:34]} 25. Rxg4 {[%emt 0:00:01]} Bd8 {[%emt 0:00:08]} 26. Bd2 {[%emt 0:01:17]} Ne7 {[%emt 0:00:01]} 27. h5 {[%emt 0:08:25]} Nf5 {[%emt 0:00:57]} 28. Kg2 {[%emt 0:05:16]} Rxh5 {[%emt 0:00:57]} 29. Rxh5 {[%emt 0:00:23]} gxh5 {[%emt 0:00:01]} 30. Rg8+ {[%emt 0:00:22]} Ke7 {[%emt 0:00:15]} 31. Qc5+ {[%emt 0:00:54]} Kd7 {[%emt 0:00:08]} 32. Nb6+ {[%emt 0:00:12]} Qxb6 {[%emt 0:00:09]} 33. axb6 {[%emt 0:00:09]} Be7 {[%emt 0:00:42]} 34. Rxa8 {[%emt 0:00:27]} 1-0

[Event "Manhem Chess Week-Elo 2019"]
[Site "Moelnlycke"]
[Date "2019.08.12"]
[Round "3.5"]
[White "Bohlin, Jan"]
[Black "Degerfeldt, Sven"]
[Result "1/2-1/2"]
[ECO "A37"]
[WhiteElo "1724"]
[BlackElo "1918"]
[Annotator "NA RC"]
[PlyCount "95"]
[EventDate "2019.08.10"]
[EventType "tourn"]
[EventCountry "SWE"]
[SourceTitle "playchess.com"]
[Source "ChessBase"]
[SourceQuality "1"]
[TimeControl "40/5400+30:1800+30"]

1. c4 {[%emt 0:00:00]} c5 {[%emt 0:00:00]} 2. g3 {[%emt 0:00:00]} g6 {[%emt 0:00:00]} 3. Bg2 {[%emt 0:00:07]} Bg7 {[%emt 0:00:00]} 4. Nc3 {[%emt 0:00:51]} Nc6 {[%emt 0:00:15]} 5. Nf3 {[%emt 0:00:07]} d6 {[%emt 0:01:23]} 6. O-O {[%emt 0:00:09]} e5 {[%emt 0:00:16]} 7. a3 {[%emt 0:00:58]} Nge7 {[%emt 0:03:45]} 8. Ne1 {[%emt 0:02:34]} O-O {[%emt 0:01:14]} 9. Nc2 {[%emt 0:02:02]} Be6 {[%emt 0:19:13]} 10. Ne3 {[%emt 0:03:39]} Qd7 {[%emt 0:01:26]} 11. Ned5 {[%emt 0:07:07]} Bh3 {[%emt 0:02:37]} 12. d3 {[%emt 0:02:39]} Bxg2 {[%emt 0:00:19] A37: Symmetrical English vs ...g6: 4 Bg2 Bg7 5 Nf3} 13. Kxg2 {[%emt 0:00:05]} f5 {[%emt 0:01:47]} 14. e3 {[%emt 0:12:57] [#]} (14. Rb1 h6 15. b4 g5 16. b5 Nxd5 17. Nxd5 Nd4 18. e3 Ne6 19. Qh5 Kh7 20. h3 {½-½ (93) Yeoh,L (2522)-Le,Q (2715) Dubai 2019}) 14... Nxd5 $146 {[%emt 0:04:43]} ({Predecessor:} 14... Rf7 15. Rb1 Nxd5 16. Nxd5 e4 17. f4 exf3+ 18. Qxf3 Ne5 19. Qe2 Re8 20. b4 {½-½ (31) Krishna Teja,N (2340)-Liang,A (2589) Sitges 2018}) 15. cxd5 {[%emt 0:12:15]} Ne7 {[%emt 0:00:16]} 16. f4 {[%emt 0:10:15]} exf4 {[%emt 0:07:28]} 17. gxf4 {[%emt 0:06:36]} Bxc3 {[%emt 0:02:04]} 18. bxc3 {[%emt 0:00:04]} Nxd5 {[%emt 0:00:14]} 19. Qb3 {[%emt 0:02:46]} Qf7 {[%emt 0:00:16]} 20. c4 {[%emt 0:00:42]} Nf6 {[%emt 0:00:32]} 21. Bb2 {[%emt 0:01:39]} b5 {[%emt 0:13:32]} 22. Qc3 {[%emt 0:02:06]} Rae8 {[%emt 0:04:33]} 23. Rae1 {[%emt 0:01:37]} h5 {[%emt 0:00:18]} 24. h3 {[%emt 0:01:35]} (24. cxb5 $17 {might work better.} Qb7+ 25. Kg1) 24... bxc4 {[%emt 0:00:24]} 25. dxc4 {[%emt 0:00:31]} Kh7 {[%emt 0:00:15]} 26. Kh2 {[%emt 0:04:05]} Ne4 {[%emt 0:00:25]} 27. Qd3 {[%emt 0:03:09]} Qe7 $19 {[%emt 0:07:50]} 28. Rg1 {[%emt 0:04:37]} Qh4 {[%emt 0:01:40]} 29. Qe2 {[%emt 0:05:36]} Rg8 {[%emt 0:11:28]} 30. Rg2 {[%emt 0:04:59]} g5 {[%emt 0:02:15]} 31. fxg5 {[%emt 0:01:48]} Nxg5 {[%emt 0:02:02]} 32. Rg3 {[%emt 0:02:01]} Ne4 {[%emt 0:01:01]} 33. Rxg8 {[%emt 0:03:04]} Rxg8 {[%emt 0:00:13]} 34. Qf3 {[%emt 0:01:24]} Qg3+ {[%emt 0:05:05]} 35. Qxg3 {[%emt 0:00:04]} Rxg3 {[%emt 0:00:09]} 36. Bf6 {[%emt 0:01:35]} Rf3 {[%emt 0:01:46]} 37. Bh4 {[%emt 0:00:31]} f4 {[%emt 0:00:47]} 38. exf4 {[%emt 0:01:12]} Rxf4 {[%emt 0:00:09]} 39. Bg3 {[%emt 0:01:12]} Nxg3 {[%emt 0:00:32]} 40. Re7+ {[%emt 0:00:16]} Kg8 {[%emt 0:01:54]} 41. Kxg3 {[%emt 0:30:38]} Rxc4 {[%emt 0:30:29]} 42. Rxa7 {[%emt 0:00:33]} h4+ {[%emt 0:00:25]} 43. Kf3 {[%emt 0:00:48]} d5 {[%emt 0:00:27]} 44. a4 {[%emt 0:00:00]} d4 {[%emt 0:00:00]} 45. Rc7 {[%emt 0:00:00]} Rc3+ {[%emt 0:00:00]} 46. Ke2 {[%emt 0:00:00]} c4 {[%emt 0:00:00]} 47. a5 {[%emt 0:00:00]} Ra3 {[%emt 0:00:00]} 48. a6 {[%emt 0:00:24]} 1/2-1/2

[Event "Manhem Chess Week-Elo 2019"]
[Site "Moelnlycke"]
[Date "2019.08.12"]
[Round "3.6"]
[White "Hattab, Hashim"]
[Black "Jacobsson, Lennart"]
[Result "1-0"]
[ECO "A57"]
[WhiteElo "1868"]
[BlackElo "1754"]
[Annotator "NA RC"]
[PlyCount "75"]
[EventDate "2019.08.10"]
[EventType "tourn"]
[EventCountry "SWE"]
[SourceTitle "playchess.com"]
[Source "ChessBase"]
[SourceQuality "1"]
[TimeControl "40/5400+30:1800+30"]

1. d4 {[%emt 0:00:00]} Nf6 {[%emt 0:00:21]} 2. c4 {[%emt 0:00:00]} c5 {[%emt 0:00:14]} 3. d5 {[%emt 0:00:07]} b5 {[%emt 0:00:02]} 4. cxb5 {[%emt 0:00:37]} a6 {[%emt 0:00:03]} 5. Nc3 {[%emt 0:01:03]} g6 {[%emt 0:04:02]} 6. e4 {[%emt 0:00:17]} d6 {[%emt 0:00:29]} 7. Nf3 {[%emt 0:02:11]} Bg7 {[%emt 0:00:15]} 8. a4 {[%emt 0:01:15]} axb5 {[%emt 0:01:04]} 9. Bxb5+ {[%emt 0:00:18]} Nfd7 {[%emt 0:00:56]} 10. O-O {[%emt 0:02:23]} O-O {[%emt 0:00:11]} 11. Bf4 {[%emt 0:00:26]} Na6 {[%emt 0:04:25]} 12. Qe2 {[%emt 0:00:50]} Nc7 {[%emt 0:00:22]} 13. e5 $14 {[%emt 0:05:01]} Nb6 {[%emt 0:23:49]} 14. Rfd1 {[%emt 0:08:53]} Ba6 {[%emt 0:12:20]} 15. Bxa6 {[%emt 0:08:09]} Nxa6 {[%emt 0:04:28]} 16. h4 {[%emt 0:05:08]} Nb4 {[%emt 0:00:09]} 17. b3 {[%emt 0:01:18]} Qd7 {[%emt 0:11:15]} 18. a5 {[%emt 0:01:46]} Nc8 {[%emt 0:02:27]} 19. Qe4 {[%emt 0:01:48]} f6 {[%emt 0:11:28]} 20. e6 {[%emt 0:00:30]} Qd8 {[%emt 0:00:42]} 21. h5 {[%emt 0:04:54]} g5 {[%emt 0:03:26]} 22. Bxg5 {[%emt 0:00:34]} Qe8 {[%emt 0:05:25]} 23. h6 {[%emt 0:02:36]} Bh8 {[%emt 0:02:03]} 24. Bd2 {[%emt 0:00:55]} f5 {[%emt 0:00:33]} 25. Qc4 {[%emt 0:01:13]} Qg6 {[%emt 0:02:42]} 26. Ra4 {[%emt 0:01:03]} Bf6 {[%emt 0:01:43]} 27. Ne2 {[%emt 0:02:00]} Kh8 {[%emt 0:01:09]} 28. g3 {[%emt 0:01:15]} Qh5 {[%emt 0:00:35]} 29. Kg2 {[%emt 0:00:18]} Na7 {[%emt 0:00:41]} 30. Rh1 {[%emt 0:00:22]} Qe8 {[%emt 0:00:10]} 31. Bc3 {[%emt 0:03:05]} Nb5 {[%emt 0:00:38]} 32. Bxf6+ {[%emt 0:00:22]} Rxf6 {[%emt 0:00:09]} 33. Ng5 {[%emt 0:01:34]} Nc7 {[%emt 0:03:18]} 34. Rxb4 {[%emt 0:01:08]} cxb4 {[%emt 0:01:16]} 35. Qxc7 {[%emt 0:00:38]} Rc8 {[%emt 0:01:07]} 36. Nf7+ {[%emt 0:00:39]} Kg8 {[%emt 0:00:07]} 37. Nxd6 {[%emt 0:00:56]} Qc6 38. Qxc6 1-0

[Event "Manhem Chess Week-Elo 2019"]
[Site "Moelnlycke"]
[Date "2019.08.12"]
[Round "3.8"]
[White "Berg, Roy"]
[Black "Peterson, Rolf"]
[Result "1-0"]
[ECO "A48"]
[WhiteElo "1913"]
[BlackElo "1580"]
[Annotator "NA RC"]
[PlyCount "118"]
[EventDate "2019.08.10"]
[EventType "tourn"]
[EventCountry "SWE"]
[SourceTitle "playchess.com"]
[Source "ChessBase"]
[SourceQuality "1"]
[TimeControl "40/5400+30:1800+30"]

1. d4 {[%emt 0:00:00]} Nf6 {[%emt 0:00:29]} 2. Nf3 {[%emt 0:00:27]} g6 {[%emt 0:00:00]} 3. Bf4 {[%emt 0:01:42]} Bg7 {[%emt 0:00:30]} 4. e3 {[%emt 0:00:26]} Nh5 {[%emt 0:00:38]} 5. Bg3 {[%emt 0:04:56]} Nxg3 {[%emt 0:00:18]} 6. hxg3 {[%emt 0:00:13]} c5 {[%emt 0:00:27]} 7. c3 {[%emt 0:00:42]} Qb6 {[%emt 0:01:53]} 8. Qb3 {[%emt 0:04:00]} Qxb3 {[%emt 0:00:34]} 9. axb3 {[%emt 0:00:10]} cxd4 {[%emt 0:00:25]} 10. Nxd4 {[%emt 0:01:17]} a6 {[%emt 0:02:45]} 11. Nd2 {[%emt 0:03:49]} O-O {[%emt 0:01:45]} 12. Bd3 {[%emt 0:03:44]} d5 {[%emt 0:00:55]} 13. Nb5 {[%emt 0:00:41]} Nc6 {[%emt 0:03:50]} 14. Nc7 {[%emt 0:00:29]} Rb8 {[%emt 0:01:04]} 15. Nxd5 {[%emt 0:00:08]} Rd8 {[%emt 0:00:15]} 16. Be4 {[%emt 0:03:27]} f5 {[%emt 0:02:42]} 17. Bf3 {[%emt 0:00:24]} e5 {[%emt 0:02:08]} 18. Nb6 {[%emt 0:01:46]} Be6 {[%emt 0:01:38]} 19. Ndc4 {[%emt 0:00:57]} e4 {[%emt 0:00:59]} 20. Be2 {[%emt 0:00:26]} h6 {[%emt 0:05:57]} 21. O-O {[%emt 0:07:50]} Bf8 {[%emt 0:03:26]} 22. b4 {[%emt 0:03:22]} Be7 {[%emt 0:03:32]} 23. Rfd1 {[%emt 0:01:13]} Kg7 {[%emt 0:02:29]} 24. f4 {[%emt 0:04:00]} g5 {[%emt 0:01:37]} 25. Kf2 {[%emt 0:01:51]} g4 {[%emt 0:02:16]} 26. Rh1 {[%emt 0:03:06]} Rh8 {[%emt 0:03:34]} 27. Rad1 {[%emt 0:03:18]} h5 {[%emt 0:00:35]} 28. Nd7 {[%emt 0:08:30]} Rbc8 {[%emt 0:03:14]} 29. Ndb6 {[%emt 0:05:03]} Rcg8 {[%emt 0:02:22]} 30. Nd5 {[%emt 0:07:47]} Bd8 {[%emt 0:11:07]} 31. Nd6 {[%emt 0:06:21]} h4 {[%emt 0:01:55]} 32. gxh4 {[%emt 0:14:42]} g3+ {[%emt 0:12:02]} 33. Kg1 {[%emt 0:01:17]} Bxd5 {[%emt 0:06:39]} 34. Nxf5+ {[%emt 0:00:24]} Kf6 {[%emt 0:00:40]} 35. Rxd5 {[%emt 0:00:22]} Ne7 {[%emt 0:03:08]} 36. Nxe7 {[%emt 0:01:53]} Bxe7 {[%emt 0:00:18]} 37. h5 {[%emt 0:05:05]} Rd8 {[%emt 0:01:03]} 38. Bc4 {[%emt 0:00:48]} b5 {[%emt 0:00:17]} 39. Bb3 {[%emt 0:00:12]} Rxd5 {[%emt 0:00:14]} 40. Bxd5 {[%emt 0:01:38]} Rd8 {[%emt 0:03:39]} 41. Bb3 {[%emt 0:30:50]} Rd2 {[%emt 0:31:22]} 42. Kf1 {[%emt 0:00:00]} Rf2+ {[%emt 0:00:00]} 43. Ke1 {[%emt 0:00:00]} Rxg2 {[%emt 0:00:00]} 44. Bd1 {[%emt 0:00:00]} Kg7 {[%emt 0:00:00]} 45. Be2 {[%emt 0:00:00]} Kh6 {[%emt 0:00:00]} 46. Kd2 {[%emt 0:00:00]} Rf2 {[%emt 0:00:00]} 47. Rh3 {[%emt 0:00:00]} g2 {[%emt 0:00:00]} 48. Rg3 {[%emt 0:00:00]} Bh4 {[%emt 0:00:00]} 49. Rg6+ {[%emt 0:00:00]} Kh7 {[%emt 0:00:00]} 50. b3 {[%emt 0:00:00]} Kh8 {[%emt 0:00:00]} 51. c4 {[%emt 0:00:00]} bxc4 {[%emt 0:00:00]} 52. bxc4 {[%emt 0:00:00]} Be7 {[%emt 0:00:00]} 53. c5 {[%emt 0:00:00]} a5 {[%emt 0:00:00]} 54. bxa5 {[%emt 0:00:34]} Bxc5 {[%emt 0:00:00]} 55. a6 {[%emt 0:00:10]} Bb4+ {[%emt 0:00:00]} 56. Kd1 {[%emt 0:01:14]} Rf1+ {[%emt 0:00:00]} 57. Kc2 {[%emt 0:02:14]} g1=Q {[%emt 0:00:00]} 58. Bxf1 {[%emt 0:02:51]} Qxf1 {[%emt 0:00:00]} 59. Rg4 {[%emt 0:03:04]} Be7 {[%emt 0:11:03] Kd1} 1-0

[Event "Manhem Chess Week-Elo 2019"]
[Site "Moelnlycke"]
[Date "2019.08.13"]
[Round "4.1"]
[White "Bengtsson, Jonas"]
[Black "Moller, Mikael"]
[Result "1-0"]
[ECO "A35"]
[WhiteElo "2145"]
[BlackElo "1957"]
[Annotator "NA"]
[PlyCount "95"]
[EventDate "2019.08.10"]
[EventType "tourn"]
[EventCountry "SWE"]
[SourceTitle "playchess.com"]
[Source "ChessBase"]
[SourceQuality "1"]
[TimeControl "40/5400+30:1800+30"]

1. d4 {[%emt 0:00:00]} g6 {[%emt 0:00:00]} 2. c4 {[%emt 0:00:00]} Bg7 3. Nf3 {[%emt 0:00:00]} c5 {[%emt 0:00:00]} 4. Nc3 {[%emt 0:00:19]} cxd4 {[%emt 0:00:13]} 5. Nxd4 {[%emt 0:00:06]} Nc6 {[%emt 0:01:48]} 6. Nc2 {[%emt 0:01:31]} Bxc3+ {[%emt 0:01:05]} 7. bxc3 {[%emt 0:00:07]} Nf6 {[%emt 0:00:07]} 8. g3 {[%emt 0:01:50]} Qa5 {[%emt 0:00:17]} 9. Ne3 {[%emt 0:06:38]} Qxc3+ {[%emt 0:00:42]} 10. Bd2 {[%emt 0:00:07]} Qd4 {[%emt 0:05:03]} 11. Bg2 {[%emt 0:07:39]} Ne4 {[%emt 0:00:46]} 12. Bxe4 {[%emt 0:00:30]} Qxe4 {[%emt 0:00:23]} 13. f3 {[%emt 0:03:05]} Qd4 {[%emt 0:01:29]} 14. Nd5 {[%emt 0:01:02]} O-O {[%emt 0:01:45]} 15. Rc1 $15 {[%emt 0:02:33]} d6 {[%emt 0:06:11]} 16. e3 {[%emt 0:05:00]} Qc5 {[%emt 0:08:33]} 17. Qb3 {[%emt 0:04:23]} Rb8 {[%emt 0:05:41]} 18. Qb2 {[%emt 0:03:13]} f6 {[%emt 0:07:28]} 19. Kf2 {[%emt 0:05:38]} e5 {[%emt 0:01:09]} 20. Nc3 {[%emt 0:16:02]} Nb4 {[%emt 0:06:26]} 21. Qb1 {[%emt 0:07:38]} Qxc4 {[%emt 0:04:13]} 22. Kg2 {[%emt 0:00:06]} Qd3 {[%emt 0:04:19]} 23. Qb3+ {[%emt 0:02:01]} Kg7 {[%emt 0:00:24]} 24. Rhd1 {[%emt 0:00:16]} a5 {[%emt 0:04:49]} 25. Be1 {[%emt 0:08:52]} Qxe3 {[%emt 0:01:23]} 26. Bf2 {[%emt 0:00:08]} Qh6 {[%emt 0:03:21]} 27. Nb5 {[%emt 0:09:02]} Qh3+ {[%emt 0:04:57]} 28. Kg1 {[%emt 0:00:30]} Be6 {[%emt 0:05:12]} 29. Qa4 {[%emt 0:02:37]} Bd5 {[%emt 0:02:41]} 30. Rc7+ {[%emt 0:02:31]} Kh8 {[%emt 0:01:20]} 31. Qa3 {[%emt 0:01:41]} Rbc8 {[%emt 0:05:09]} 32. Rxc8 {[%emt 0:01:14]} Rxc8 {[%emt 0:00:06]} 33. Nxd6 {[%emt 0:00:10]} Rc2 {[%emt 0:01:10]} 34. Qxa5 {[%emt 0:06:38]} Rxf2 {[%emt 0:06:34]} 35. Kxf2 {[%emt 0:00:50]} Qxh2+ {[%emt 0:00:06]} 36. Ke3 {[%emt 0:00:12]} Nc2+ {[%emt 0:02:39]} 37. Kd3 {[%emt 0:00:10]} Nd4 {[%emt 0:01:53]} 38. Rd2 {[%emt 0:02:05]} Qxg3 {[%emt 0:00:10]} 39. Qxd5 {[%emt 0:00:34]} Nxf3 {[%emt 0:01:06]} 40. Rb2 {[%emt 0:02:15]} e4+ {[%emt 0:06:49]} 41. Nxe4 {[%emt 0:08:59]} Ne5+ {[%emt 0:00:29]} 42. Kc2 {[%emt 0:01:12]} Qg2+ {[%emt 0:01:02]} 43. Kb3 {[%emt 0:00:38]} Qf3+ {[%emt 0:06:59]} 44. Nc3 {[%emt 0:01:32]} g5 {[%emt 0:01:21]} 45. Qxf3 {[%emt 0:02:44]} Nxf3 {[%emt 0:00:05]} 46. Kc2 {[%emt 0:00:22]} g4 {[%emt 0:00:10]} 47. Kd3 {[%emt 0:00:11]} g3 {[%emt 0:00:19]} 48. Ke3 {[%emt 0:02:59]} 1-0

[Event "Manhem Chess Week-Elo 2019"]
[Site "Moelnlycke"]
[Date "2019.08.13"]
[Round "4.2"]
[White "Fransson, Lennart"]
[Black "Rasti, Arvin"]
[Result "0-1"]
[ECO "B21"]
[WhiteElo "2014"]
[BlackElo "2220"]
[Annotator "ChessBase"]
[PlyCount "34"]
[EventDate "2019.08.10"]
[EventType "tourn"]
[EventCountry "SWE"]
[SourceTitle "playchess.com"]
[Source "ChessBase"]
[SourceQuality "1"]
[TimeControl "40/5400+30:1800+30"]

1. e4 {[%emt 0:00:00]} c5 {[%emt 0:00:06]} 2. d4 {[%emt 0:00:00]} cxd4 {[%emt 0:00:03]} 3. c3 {[%emt 0:00:00]} d3 {[%emt 0:00:02]} 4. Bxd3 {[%emt 0:00:33]} Nc6 {[%emt 0:00:15]} 5. Nf3 {[%emt 0:05:00]} d6 {[%emt 0:00:40]} 6. h3 {[%emt 0:00:09]} g6 {[%emt 0:00:04]} 7. Bg5 {[%emt 0:01:14]} Bg7 {[%emt 0:01:00]} 8. Qd2 {[%emt 0:00:28]} Nf6 {[%emt 0:02:45]} 9. Na3 {[%emt 0:00:52]} O-O {[%emt 0:03:33]} 10. Bh6 {[%emt 0:03:01]} a6 {[%emt 0:02:52]} 11. Bxg7 {[%emt 0:01:52]} Kxg7 {[%emt 0:00:01]} 12. Nc2 {[%emt 0:03:10]} Qb6 {[%emt 0:08:14]} 13. Ne3 {[%emt 0:02:39]} Be6 {[%emt 0:04:26]} 14. Ng5 {[%emt 0:14:54]} Ne5 {[%emt 0:00:56]} 15. f4 {[%emt 0:05:29]} Qxb2 {[%emt 0:14:52]} 16. Qxb2 {[%emt 0:19:32]} Nxd3+ {[%emt 0:00:09]} 17. Kd2 {[%emt 0:01:50]} Nxb2 {[%emt 0:00:06]} 0-1

[Event "Manhem Chess Week-Elo 2019"]
[Site "Moelnlycke"]
[Date "2019.08.13"]
[Round "4.4"]
[White "Berggren Torell, Harald"]
[Black "Bergre, Joachim"]
[Result "1-0"]
[ECO "B07"]
[WhiteElo "2137"]
[BlackElo "1928"]
[Annotator "ChessBase"]
[PlyCount "67"]
[EventDate "2019.08.10"]
[EventType "tourn"]
[EventCountry "SWE"]
[SourceTitle "playchess.com"]
[Source "ChessBase"]
[SourceQuality "1"]
[TimeControl "40/5400+30:1800+30"]

1. d4 {[%emt 0:00:00]} d6 {[%emt 0:00:00]} 2. Nc3 {[%emt 0:00:00]} g6 {[%emt 0:00:00]} 3. e4 {[%emt 0:00:14]} Bg7 {[%emt 0:00:00]} 4. Be3 {[%emt 0:00:14]} Nf6 {[%emt 0:07:03]} 5. Be2 {[%emt 0:00:33]} a6 {[%emt 0:02:34]} 6. h4 {[%emt 0:00:13]} h5 {[%emt 0:00:58]} 7. Nh3 {[%emt 0:01:24]} Ng4 {[%emt 0:10:19]} 8. Bg5 {[%emt 0:11:48]} Nc6 {[%emt 0:12:52]} 9. f3 {[%emt 0:02:15]} Nh6 {[%emt 0:02:27]} 10. Be3 {[%emt 0:04:32]} Bxh3 {[%emt 0:25:04]} 11. Rxh3 {[%emt 0:00:48]} Qd7 {[%emt 0:02:30]} 12. Qd2 {[%emt 0:02:57]} Na7 {[%emt 0:06:55]} 13. a3 {[%emt 0:09:02]} c6 {[%emt 0:02:38]} 14. a4 {[%emt 0:07:41]} e6 {[%emt 0:11:21]} 15. a5 {[%emt 0:03:19]} Ng8 {[%emt 0:04:15]} 16. Na4 {[%emt 0:03:19]} Nc8 {[%emt 0:00:37]} 17. Qb4 {[%emt 0:02:18]} Bf8 {[%emt 0:02:21]} 18. Qb3 {[%emt 0:07:00]} Qc7 {[%emt 0:00:44]} 19. Qc3 {[%emt 0:02:35]} d5 {[%emt 0:02:41]} 20. e5 {[%emt 0:03:09]} Na7 {[%emt 0:01:06]} 21. b3 {[%emt 0:04:49]} Ne7 {[%emt 0:01:03]} 22. g4 {[%emt 0:03:02]} Nec8 {[%emt 0:00:20]} 23. Kf2 {[%emt 0:02:13]} Be7 {[%emt 0:01:57]} 24. Rg1 {[%emt 0:06:33]} hxg4 {[%emt 0:00:34]} 25. Rxg4 {[%emt 0:00:01]} Bd8 {[%emt 0:00:08]} 26. Bd2 {[%emt 0:01:17]} Ne7 {[%emt 0:00:01]} 27. h5 {[%emt 0:08:25]} Nf5 {[%emt 0:00:57]} 28. Kg2 {[%emt 0:05:16]} Rxh5 {[%emt 0:00:57]} 29. Rxh5 {[%emt 0:00:23]} gxh5 {[%emt 0:00:01]} 30. Rg8+ {[%emt 0:00:22]} Ke7 {[%emt 0:00:15]} 31. Qc5+ {[%emt 0:00:54]} Kd7 {[%emt 0:00:08]} 32. Nb6+ {[%emt 0:00:12]} Qxb6 {[%emt 0:00:09]} 33. axb6 {[%emt 0:00:09]} Be7 {[%emt 0:00:42]} 34. Rxa8 {[%emt 0:00:27]} 1-0

[Event "Manhem Chess Week-Elo 2019"]
[Site "Moelnlycke"]
[Date "2019.08.13"]
[Round "4.4"]
[White "Berggren Torell, Harald"]
[Black "Bergre, Joachim"]
[Result "1/2-1/2"]
[ECO "B01"]
[WhiteElo "2137"]
[BlackElo "1928"]
[Annotator "NA"]
[PlyCount "26"]
[EventDate "2019.08.10"]
[EventType "tourn"]
[EventCountry "SWE"]
[SourceTitle "playchess.com"]
[Source "ChessBase"]
[SourceQuality "1"]
[TimeControl "40/5400+30:1800+30"]

1. e4 {[%emt 0:00:00]} d5 {[%emt 0:00:00]} 2. exd5 {[%emt 0:00:00]} Qxd5 {[%emt 0:00:01]} 3. Nf3 {[%emt 0:00:15]} Nf6 {[%emt 0:00:41]} 4. d4 {[%emt 0:00:28]} c6 {[%emt 0:02:43]} 5. c4 {[%emt 0:01:57]} Qd8 {[%emt 0:07:45]} 6. h3 {[%emt 0:00:57]} Bf5 {[%emt 0:00:31]} 7. Nc3 {[%emt 0:00:14]} e6 {[%emt 0:01:10]} 8. Be2 {[%emt 0:09:46]} Be7 {[%emt 0:04:10]} 9. Be3 $14 {[%emt 0:05:45]} h6 {[%emt 0:09:10]} 10. O-O {[%emt 0:02:28]} O-O {[%emt 0:00:47]} 11. Qb3 {[%emt 0:13:06]} Qc8 {[%emt 0:11:28]} 12. Rfd1 {[%emt 0:14:48]} Nbd7 {[%emt 0:09:16]} 13. Bd3 {[%emt 0:10:06]} Bxd3 {[%emt 0:06:33]} 1/2-1/2